Cogmind - Beta 12 @@@ ROGUE MODE // 2023.05.13 @ 13:59:58 Player: Mr Goldstein Result: Destroyed by H-55 Commando with Assault Rifle Performance ------------- Evolutions (2) 1000 Regions Visited (4) 800 Robots Destroyed (7) 35 Value Destroyed (70) 70 Prototype IDs (1) 20 Alien Tech Used (0) 0 Bonus (0) 0 TOTAL SCORE: 1925 Bonus ------- None Cogmind --------- Core Integrity 0/550 Matter 208/300 Energy 99/100 System Corruption 0% Temperature Cool (9) Movement Core (50) Location -8/Materials Parts ------- > --- POWER (1) -------- (None) > --- PROPULSION (4) --- (None) > --- UTILITY (4) ------ (None) > --- WEAPON (2) ------- (None) > --- INVENTORY (5) ---- Flight Unit Flight Unit Cesium-ion Thruster Small Storage Unit Mini Grenade Launcher Peak State ------------ > --- POWER ------------ (None) > --- PROPULSION ------- Carbon-fiber Leg Carbon-fiber Leg Carbon-fiber Leg > --- UTILITY ---------- (None) > --- WEAPON ----------- Enhanced Autogun > --- INVENTORY -------- Carbon-fiber Leg Mini Grenade Launcher Mini Grenade Launcher [Rating: 13] Favorites ----------- Power None Propulsion Carbon-fiber Leg Treads Light Treads Leg Carbon-fiber Leg Utility None Weapon Mini Grenade Launcher Ballistic Gun Enhanced Autogun Launcher Mini Grenade Launcher Build | -11 -10 -10 -9 -8 ------- Run | Jun Mat Min Mat Mat Slots Evolved 4 | . . . 2 2 Power . | . . . . . Propulsion 2 | . . . 1 1 Utility 2 | . . . 1 1 Weapon . | . . . . . Parts Attached 9 | 2 . 1 5 1 Power . | . . . . . Engine . | . . . . . Core . | . . . . . Reactor . | . . . . . Propulsion 6 | 2 . . 3 1 Treads 2 | 2 . . . . Leg 4 | . . . 3 1 Wheel . | . . . . . Hover . | . . . . . Flight . | . . . . . Utility . | . . . . . Device . | . . . . . Storage . | . . . . . Processor . | . . . . . Hackware . | . . . . . Protection . | . . . . . Artifact . | . . . . . Weapon 3 | . . 1 2 . Energy Gun . | . . . . . Energy Cannon . | . . . . . Ballistic Gun 1 | . . . 1 . Ballistic Cannon . | . . . . . Launcher 2 | . . 1 1 . Special Weapon . | . . . . . Impact Weapon . | . . . . . Slashing Weapon . | . . . . . Piercing Weapon . | . . . . . Special Melee Weapon . | . . . . . Unidentified Prototypes 1 | . . . 1 . Parts Lost 6 | . . 2 . 4 Power . | . . . . . Propulsion 6 | . . 2 . 4 Utility . | . . . . . Weapon . | . . . . . Highest Loss Streak 4 | . . 1 . 4 To Critical Strikes 1 | . . 1 . . Average Slot Usage (%) 21 | . 28 8 26 12 Treads 8 | . 28 7 . . Leg 12 | . . . 26 12 Naked Turns 144 | . . 53 43 48 Heaviest Build 1 | . . 1 . . Greatest Support 45 | 20 3 3 45 3 Greatest Overweight (x) . | . . . . . Average Overweight (x) . | . . . . . Largest Inventory Capacity 5 | 5 5 5 5 5 Average Capacity 5 | 5 5 5 5 5 Most Carried 5 | . 2 2 5 5 Average Carried 3 | . 1 1 3 4 Final Capacity 5 | 5 5 5 5 5 Final Carried 5 | . 2 2 5 5 Class Distribution -------------------- 100% | Mutant Dominant Class ---------------- Mutant | -10/Materials Mutant | -10/Mines Mutant | -9/Materials Mutant | -8/Materials Resources | -11 -10 -10 -9 -8 ----------- Run | Jun Mat Min Mat Mat Matter Collected 223 | 220 . . . 3 Remotely . | . . . . . Salvage Created 28 | . . 12 16 . Parts 14 | . . 5 9 . Haulers Intercepted . | . . . . . Recyclers Shooed . | . . . . . Parts Field Recycled . | . . . . . Retrieved Matter . | . . . . . Parts Self-Destructed . | . . . . . Prevented . | . . . . . Kills | -11 -10 -10 -9 -8 ------- Run | Jun Mat Min Mat Mat Combat Hostiles Destroyed 7 | . . 3 4 . AOE 7 | . . 3 4 . Classes Destroyed 1 | . . 1 . . Swarmer 7 | . . 3 4 . Best Kill Streak 4 | . . 3 4 . Combat Bots Only 4 | . . 3 4 . Max Kills in Single Turn 2 | . . 2 2 . Gunslinging . | . . . . . Exploded 2 | . . 2 2 . Melee . | . . . . . Uniques/NPCs Destroyed . | . . . . . Combat | -11 -10 -10 -9 -8 -------- Run | Jun Mat Min Mat Mat Damage Taken 1558 | . 335 64 388 771 Core 809 | . 100 24 134 551 Absorbed by Shields . | . . . . . Core Remaining (%) 72 | 100 . 50 66 . Volleys Fired 6 | . . 3 3 . Largest 1 | . . 1 1 . Hottest 30 | . . 30 30 . Shots Fired 6 | . . 3 3 . Gun . | . . . . . Cannon . | . . . . . Launcher 6 | . . 3 3 . Special . | . . . . . Kinetic . | . . . . . Thermal . | . . . . . Explosive 6 | . . 3 3 . Electromagnetic . | . . . . . Robot Hit Streak . | . . . . . Robot Miss Streak . | . . . . . Penetration Max . | . . . . . Secondary Targets . | . . . . . Shots Hit Robots . | . . . . . Core Hits 10 | . 3 3 4 . Critical Kills . | . . . . . Critical Parts Destroyed . | . . . . . Critical Strikes . | . . . . . Melee Attacks . | . . . . . Impact . | . . . . . Slashing . | . . . . . Piercing . | . . . . . Sneak Attacks . | . . . . . Combat Hostiles . | . . . . . Follow-up Attacks . | . . . . . Damage Inflicted 360 | . 45 140 175 . Guns . | . . . . . Cannons . | . . . . . Explosions 315 | . . 140 175 . Melee . | . . . . . Ramming 45 | . 45 . . . Kinetic . | . . . . . Thermal . | . . . . . Explosive 315 | . . 140 175 . Electromagnetic . | . . . . . Impact . | . . . . . Slashing . | . . . . . Piercing . | . . . . . Highest Corruption 1 | . 1 1 . . Average Corruption 1 | . 1 1 . . Corruption Purged . | . . . . . Corruption Blocked . | . . . . . Effects 2 | . 1 1 . . Heat Flow Errors 1 | . 1 . . . Data Loss (major) 1 | . . 1 . . Overload Shots . | . . . . . Overflow Damage 6 | . . 6 . . Projectiles . | . . . . . Explosions 6 | . . 6 . . Melee . | . . . . . Knockbacks . | . . . . . Impact . | . . . . . Kinetic . | . . . . . Secondary . | . . . . . Self-Inflicted Damage 52 | . 19 . 33 . Shots 1 | . . . 1 . Rammed 14 | . 13 1 . . Targets Rammed 14 | . 13 1 . . Kicked . | . . . . . Crushed . | . . . . . Highest Temperature 102 | . 102 . . . Average Temperature 43 | . 43 . . . Received Heat Transfer 465 | . 186 12 87 180 Siege Activations . | . . . . . Robots Corrupted . | . . . . . Combat Hostiles . | . . . . . Parts Fried . | . . . . . Impact Corruptions . | . . . . . Robots Melted . | . . . . . Combat Hostiles . | . . . . . Parts Melted . | . . . . . Heat Transferred . | . . . . . Parts Sabotaged . | . . . . . Parts Stolen . | . . . . . Parts Stripped . | . . . . . Power Chain Reactions . | . . . . . Missiles Intercepted . | . . . . . Alert | -11 -10 -10 -9 -8 ------- Run | Jun Mat Min Mat Mat Peak Influence 449 | . 90 132 449 344 Initial 189 | . . 34 51 189 Average 148 | . 15 103 232 232 Maximum Alert Level 2 | . . . 2 1 Low Security (%) 65 | 100 100 100 33 42 Level 1 27 | . . . 48 57 Level 2 6 | . . . 17 . Level 3 . | . . . . . Level 4 . | . . . . . Level 5 . | . . . . . High Security . | . . . . . Max Security . | . . . . . Squads Dispatched 4 | . 1 . 2 1 Investigation 2 | . 1 . 1 . Extermination . | . . . . . Reinforcement 2 | . . . 1 1 Assault . | . . . . . Garrison . | . . . . . Intercept . | . . . . . Searches Triggered . | . . . . . Construction Impeded . | . . . . . Haulers Reinforced . | . . . . . Active Scanning Responses . | . . . . . Cargo Convoy Interrupts . | . . . . . Stealth | -11 -10 -10 -9 -8 --------- Run | Jun Mat Min Mat Mat Distress Signals 5 | . . . 3 2 Communications Jammed . | . . . . . Distress Signals . | . . . . . Times Spotted 55 | . 8 5 25 17 Peak Tracking Total 10 | . 6 3 10 10 Tactical Retreats 8 | . 1 1 4 2 Traps | -11 -10 -10 -9 -8 ------- Run | Jun Mat Min Mat Mat Traps Triggered 1 | . . . 1 . Indirectly . | . . . . . Trap Hack Attempts . | . . . . . Triggered . | . . . . . Disarmed . | . . . . . Reprogrammed . | . . . . . Reused . | . . . . . Traps Extracted . | . . . . . Installed . | . . . . . Triggered . | . . . . . Machines | -11 -10 -10 -9 -8 ---------- Run | Jun Mat Min Mat Mat Machines Disabled . | . . . . . Max in Single Turn . | . . . . . Machines Repaired . | . . . . . Machines Sabotaged . | . . . . . Overloaded Fab Kills . | . . . . . Hacking | -11 -10 -10 -9 -8 --------- Run | Jun Mat Min Mat Mat Machines Accessed 4 | . 1 . 3 . Terminals 2 | . . . 2 . Fabricators . | . . . . . Repair Stations . | . . . . . Recycling Units 2 | . 1 . 1 . Scanalyzers . | . . . . . Garrison Access . | . . . . . Total Hacks 9 | . 2 . 7 . Successful 3 | . 1 . 2 . Failed 6 | . 1 . 5 . Catastrophic 4 | . 1 . 3 . Database Lockouts . | . . . . . Manual 9 | . 2 . 7 . Terminals 6 | . . . 6 . Fabricators . | . . . . . Repair Stations . | . . . . . Recycling Units 3 | . 2 . 1 . Scanalyzers . | . . . . . Garrison Access . | . . . . . Terminal Hacks 1 | . . . 1 . Hauler Manifests 1 | . . . 1 . Fabricator Hacks . | . . . . . Repair Station Hacks . | . . . . . Recycling Unit Hacks . | . . . . . Scanalyzer . | . . . . . Garrison Access Hacks . | . . . . . Unauthorized Hacks 2 | . 1 . 1 . Terminals . | . . . . . Fabricators . | . . . . . Repair Stations . | . . . . . Recycling Units 2 | . 1 . 1 . Tunnel 2 | . 1 . 1 . Scanalyzers . | . . . . . Garrison Access . | . . . . . Data Cores Recovered . | . . . . . Used . | . . . . . Hacking Detections 2 | . 1 . 1 . Full Trace Events 1 | . . . 1 . Feedback Events . | . . . . . Feedback Blocked . | . . . . . Robot Schematics Acquired . | . . . . . Robots Built . | . . . . . Authchips . | . . . . . Time . | . . . . . Total Robot Build Rating . | . . . . . Part Schematics Acquired . | . . . . . Parts Built . | . . . . . Authchips . | . . . . . Time . | . . . . . Total Part Build Rating . | . . . . . Parts Repaired . | . . . . . Time . | . . . . . Parts Recycled . | . . . . . Recycled Matter . | . . . . . Retrieved Matter . | . . . . . Retrieved Components . | . . . . . Parts Scanalyzed . | . . . . . Part Schematics Acquired . | . . . . . Parts Damaged . | . . . . . Bothacking | -11 -10 -10 -9 -8 ------------ Run | Jun Mat Min Mat Mat Used RIF Installer . | . . . . . Robots Hacked . | . . . . . Non-combat . | . . . . . Combat . | . . . . . Robot Hacks Applied . | . . . . . Relay Couplers Released . | . . . . . Fabnet Peak Effective % . | . . . . . Robots Rewired . | . . . . . Allies Hacked . | . . . . . Hacks Repelled . | . . . . . Allies | -11 -10 -10 -9 -8 -------- Run | Jun Mat Min Mat Mat Total Allies . | . . . . . Largest Group . | . . . . . Highest-Rated Group . | . . . . . Highest-Rated Ally . | . . . . . Total Orders . | . . . . . Ally Attacks . | . . . . . Total Damage . | . . . . . Kills . | . . . . . Allies Corrupted . | . . . . . Allies Melted . | . . . . . Intel | -11 -10 -10 -9 -8 ------- Run | Jun Mat Min Mat Mat Robot Analysis Total . | . . . . . Derelict Logs Recovered . | . . . . . Drone Launches . | . . . . . Drone Recoveries . | . . . . . Exploration | -11 -10 -10 -9 -8 ------------- Run | Jun Mat Min Mat Mat Turns Passed 551 | 20 138 92 212 89 Spaces Moved 992 | 27 246 164 385 170 Core 986 | 24 246 164 382 170 Treads 3 | 3 . . . . Legs 3 | . . . 3 . Wheels . | . . . . . Hover . | . . . . . Flight . | . . . . . Fastest Speed 50 | 50 50 50 50 50 Average Speed 50 | 62 50 50 50 50 Slowest Speed 160 | 160 50 50 120 50 Overloaded Moves . | . . . . . Propulsion Burnouts . | . . . . . Robots Hopped . | . . . . . Cave-ins Triggered . | . . . . . Exploration Rate (%) 36 | 3 54 32 57 35 Regions Visited 4 Branch Regions 1 Pre-discovered Areas 2 | . 1 . 1 . Known Exits Taken . | . . . . . Unknown Exits Taken 4 | 1 1 1 1 . Scrap Searched . | . . . . . Spaces Dug 12 | . . . 12 . Terrain Destroyed 49 | . . 27 22 . Melee . | . . . . . Projectile . | . . . . . AOE 49 | . . 27 22 . Terrain Rammed . | . . . . . Walls Destroyed . | . . . . . Machines Disabled . | . . . . . Actions | -11 -10 -10 -9 -8 --------- Run | Jun Mat Min Mat Mat Total 1029 | 28 260 170 397 174 Wait 1 | . . 1 . . Move 988 | 26 245 163 384 170 Hop . | . . . . . Pick Up 7 | . 2 . 3 2 Fast Attach 6 | 2 . . 4 . Attach 3 | . . 1 1 1 Detach 2 | . . 1 1 . Swap . | . . . . . Drop 2 | . . . 1 1 Fire 6 | . . 3 3 . Melee . | . . . . . Ram 14 | . 13 1 . . Kick . | . . . . . Crush . | . . . . . Escape Stasis . | . . . . . Rewire . | . . . . . Trap . | . . . . . Miscellaneous . | . . . . . Route ------- -11/Junkyard -10/Materials (discovered 3 exits: *Mat / [*Min x2]) -10/Mines -9/Materials (discovered 2 exits: [*Mat x2]) -8/Materials History --------- Turn | Location | Event 4 | -11/Junkyard | Discovered new exit (range 16) 21 | -11/Junkyard | Entered Materials 35 | -10/Materials | Discovered new exit (range 16) 83 | -10/Materials | Discovered new exit (range 13) 113 | -10/Materials | Discovered new exit (range 16) 159 | -10/Materials | Entered Mines 248 | -10/Mines | Discovered new exit (range 7) 251 | -10/Mines | Entered Materials 251 | -9/Materials | Evolved 2 slots: Propulsion x1, Utility x1 348 | -9/Materials | Build established: Mutant 390 | -9/Materials | Discovered new exit (range 12) 458 | -9/Materials | Discovered new exit (range 6) 463 | -9/Materials | Entered another Materials area 463 | -8/Materials | Evolved 2 slots: Propulsion x1, Utility x1 525 | -8/Materials | Core integrity fell below 50% 535 | -8/Materials | Lost 4 parts (4n) 550 | -8/Materials | Core integrity fell below 20% 552 | -8/Materials | Destroyed by H-55 Commando with Assault Rifle Last Messages --------------- 00492_ Acquired Sml. Storage Unit. 00498_ Dropped Mni. Grenade Launcher. 00498_ Knocked back. 00499_ K-01 Serf collects debris. 00500_ Penetrated by Slug. 00500_ Carbon-fiber Leg destroyed. 00501_ W-25 Informer sends out distress signal. 00502_ Acquired Cesium-ion Thruster. 00504_ Carbon-fiber Leg destroyed. 00504_ Knocked back. 00511_ Acquired 3 matter. 00513_ K-01 Serf collects debris. 00522_ ALERT: Hostiles spotted, dispatching reinforcements to Terminal M002. 00531_ K-01 Serf collects debris. 00532_ Penetrated by Slug. 00532_ Hadron Collector disabled. 00542_ Slug penetrates Scanalyzer. 00544_ K-01 Serf collects debris. 00552_ Penetrated by Slug. Map ----- +----------------------------------------------------+ | ?????# # #####+####??????? | | ?????###+#######+### # #??????? | | ?????# ###### ### # """#??????? | | ?????# #* """#??????? | | ?????# # """#??????? | | ?????# ###### # ##?????? | | ?????######????# # "" T#?????? | | ???????????????# # S"" ##?????? | | ???????????????# # "" #??????? | | ???????????????# " #??????? | | ???????????????# #h########??????? | | ???????????????# #?????????????? | | ???????????????# #?????????????? | | ???????????????# ###???????????? | | ####???????????# #???????????? | | !!#???????????# k +???????????? | | !!#???????????# " #???????????? | | //#???????????# g "G" #???????????? | | //#???????????# g " " #???????????? | | !!#???????????# g #???????????? | | %!!#???????????# ########????? | | ####???????????#u # #????? | | ################g # #????? | | % r g # #????? | | + #????? | | """ @# #????? | | ###+############ """ # #????? | | ## ?????????# """ ########????? | | ?# #????????# """ #???????????? | | ?# #????????# #???????????? | | ?# #????????# #???????????? | | ?# #????????+ ########???????????? | | ?# #????????# #??????????????????? | | ?# #????????# #??????????????????? | | ?# #????????# #??????????????????? | | ?# #????????# #??????????????????? | | ?######????????? ??????????????????? | | ???????????????? #??????????????????? | | ???????????????? #??????????????????? | | ??????????????????????????????????????? | | ??????????????????????????????????????? | | ??????????????????????????????????????? | | ??????????????????????????????????????? | | ??????????????????????????????????????? | | ??????????????????????????????????????? | | ??????????????????????????????????????? | | ??????????????????????????????????????? | | ??????????????????????????????????????? | | ??????????????????????????????????????? | | ??????????????????????????????????????? | +----------------------------------------------------+ Best States ------------- Heat Dissipation 31 Energy Generation 5 Energy Capacity 100 Matter Stores 300 Matter Capacity 300 Sight Range 16 Terrain Scan Density 10 Evasion (%) 50 Recoil Reduction 1 Item Schematics ----------------- None Robot Schematics ------------------ None Fabricated ------------ Nothing Alien Tech Used ----------------- None Achievements -------------- None Challenges ------------ None Game ------ Seed BiometalGammaMatrix Manual? 0 Play Time 00:07:11 Cumulative 202.5 hours Start 2023.05.13 @ 13:53:17 End 2023.05.13 @ 13:59:58 Sessions 1 Manual Loads 0 Difficulty Rogue Special Mode None Game No. 573 Rogue 573 Adventurer 0 Explorer 0 Win Type - Total 9 Types 7/0/1/1/0/0/0/0/0 Lore% 80 Gallery% 78 Achievement% 71 Wizard Run 0 Options --------- ASCII 0 Keyboard 0 Movement Numpad Keybinds 0 Fullscreen 1 Font 16/SmallcapsGlow Map View 75x55 Tactical HUD 1 Map Filters NONE Filters NONE Steam 1 RUN: 1b153cb2-1f18-40c2-bcc2-fbc5b8c1fba6